[Event "Schack-SM 2022: Mastarklassen-Elit"]
[Site "Fyrishov, Idrottsgatan 2, Uppsala, Sweden"]
[Date "2022.07.08"]
[Round "7.4"]
[White "Engqvist, Thomas"]
[Black "Cederstam, Carl"]
[Result "1/2-1/2"]
[TimeControl "90 minutes for 40 moves + 30 minutes for the rest of the game + 30 seconds per move from move one."]
[WhiteTitle "IM"]
[BlackTitle "FM"]
[WhiteFideId "1700332"]
[BlackFideId "1713329"]
[WhiteElo "2330"]
[BlackElo "2332"]

1. d4 {[%clk 01:30:56]} {[%emt 00:00:03]} d5 {[%clk 01:30:54]} {[%emt
00:00:07]} 2. c4 {[%clk 01:31:02]} {[%emt 00:00:24]} e6 {[%clk 01:31:18]}
{[%emt 00:00:05]} 3. Nc3 {[%clk 01:31:03]} {[%emt 00:00:30]} a6 {[%clk
01:31:41]} {[%emt 00:00:07]} 4. cxd5 {[%clk 01:31:01]} {[%emt 00:00:32]} exd5
{[%clk 01:32:05]} {[%emt 00:00:06]} 5. Nf3 {[%clk 01:31:19]} {[%emt 00:00:11]}
c6 {[%clk 01:32:22]} {[%emt 00:00:14]} 6. Bf4 {[%clk 01:26:26]} {[%emt
00:05:23]} Bd6 {[%clk 01:32:36]} {[%emt 00:00:15]} 7. Bxd6 {[%clk 01:23:29]}
{[%emt 00:03:27]} Qxd6 {[%clk 01:32:56]} {[%emt 00:00:11]} 8. Qb3 {[%clk
01:22:22]} {[%emt 00:01:37]} Ne7 {[%clk 01:32:30]} {[%emt 00:00:55]} 9. e3
{[%clk 01:20:24]} {[%emt 00:02:29]} O-O {[%clk 01:32:40]} {[%emt 00:00:19]} 10.
Bd3 {[%clk 01:16:13]} {[%emt 00:04:42]} Nd7 {[%clk 01:32:03]} {[%emt 00:01:06]}
11. O-O {[%clk 01:15:51]} {[%emt 00:00:52]} Nf6 {[%clk 01:31:52]} {[%emt
00:00:41]} 12. Qc2 {[%clk 01:09:47]} {[%emt 00:06:35]} g6 {[%clk 01:31:37]}
{[%emt 00:00:44]} 13. Rab1 {[%clk 01:00:52]} {[%emt 00:09:26]} Bf5 {[%clk
01:27:49]} {[%emt 00:04:17]} 14. b4 {[%clk 01:00:47]} {[%emt 00:00:36]} Rfe8
{[%clk 01:16:04]} {[%emt 00:12:14]} 15. a4 {[%clk 00:59:44]} {[%emt 00:01:34]}
Rac8 {[%clk 01:15:44]} {[%emt 00:00:49]} 16. a5 {[%clk 00:56:16]} {[%emt
00:03:58]} Bxd3 {[%clk 01:09:26]} {[%emt 00:06:49]} 17. Qxd3 {[%clk 00:56:40]}
{[%emt 00:00:05]} Nf5 {[%clk 01:09:43]} {[%emt 00:00:12]} 18. Na4 {[%clk
00:51:59]} {[%emt 00:05:13]} Rc7 {[%clk 00:46:59]} {[%emt 00:23:14]} 19. Nc5
{[%clk 00:51:42]} {[%emt 00:00:47]} Ne4 {[%clk 00:44:35]} {[%emt 00:02:54]} 20.
Ne5 {[%clk 00:39:10]} {[%emt 00:13:01]} Qd8 {[%clk 00:36:19]} {[%emt 00:08:45]}
21. Qc2 {[%clk 00:31:03]} {[%emt 00:08:38]} Qh4 {[%clk 00:20:16]} {[%emt
00:16:32]} 22. Nxe4 {[%clk 00:25:47]} {[%emt 00:05:47]} dxe4 {[%clk 00:20:31]}
{[%emt 00:00:16]} 23. b5 {[%clk 00:13:26]} {[%emt 00:12:52]} axb5 {[%clk
00:19:04]} {[%emt 00:01:56]} 24. Rxb5 {[%clk 00:13:15]} {[%emt 00:00:41]} f6
{[%clk 00:18:05]} {[%emt 00:01:28]} 25. Qb3+ {[%clk 00:13:38]} {[%emt
00:00:08]} Kf8 {[%clk 00:17:14]} {[%emt 00:01:21]} 26. Rxb7 {[%clk 00:12:42]}
{[%emt 00:01:26]} Rxb7 {[%clk 00:17:15]} {[%emt 00:00:29]} 27. Nxg6+ {[%clk
00:12:02]} {[%emt 00:01:10]} hxg6 {[%clk 00:17:33]} {[%emt 00:00:11]} 28. Qxb7
{[%clk 00:12:30]} {[%emt 00:00:03]} Qg5 {[%clk 00:11:57]} {[%emt 00:06:04]} 29.
Qxc6 {[%clk 00:09:02]} {[%emt 00:04:00]} Nh4 {[%clk 00:11:12]} {[%emt
00:01:13]} 30. Qd6+ {[%clk 00:05:56]} {[%emt 00:03:37]} Kf7 {[%clk 00:10:49]}
{[%emt 00:00:53]} 31. Qg3 {[%clk 00:03:58]} {[%emt 00:02:28]} Qxg3 {[%clk
00:10:43]} {[%emt 00:00:34]} 32. hxg3 {[%clk 00:04:27]} {[%emt 00:00:04]} Nf5
{[%clk 00:11:05]} {[%emt 00:00:08]} 33. Ra1 {[%clk 00:04:02]} {[%emt 00:00:56]}
Ra8 {[%clk 00:11:05]} {[%emt 00:00:29]} 34. g4 {[%clk 00:03:25]} {[%emt
00:01:06]} Nd6 {[%clk 00:11:08]} {[%emt 00:00:27]} 35. a6 {[%clk 00:03:44]}
{[%emt 00:00:12]} Ke6 {[%clk 00:09:29]} {[%emt 00:02:08]} 36. a7 {[%clk
00:03:19]} {[%emt 00:00:55]} Ne8 {[%clk 00:05:39]} {[%emt 00:04:19]} 37. Ra6+
{[%clk 00:02:58]} {[%emt 00:00:52]} Ke7 {[%clk 00:00:57]} {[%emt 00:05:05]} 38.
f3 {[%clk 00:01:31]} {[%emt 00:02:04]} Nd6 {[%clk 00:00:55]} {[%emt 00:00:32]}
39. Kf2 {[%clk 00:01:09]} {[%emt 00:00:52]} f5 {[%clk 00:00:40]} {[%emt
00:00:46]} 40. gxf5 {[%clk 00:01:20]} {[%emt 00:00:19]} gxf5 {[%clk 00:01:08]}
41. Kg3 {[%clk 00:00:37]} {[%emt 00:01:14]} exf3 {[%clk 00:24:59]} {[%emt
00:06:39]} 42. gxf3 {[%clk 00:30:46]} {[%emt 00:00:21]} Ke6 {[%clk 00:21:28]}
{[%emt 00:04:00]} 43. Kf4 {[%clk 00:28:41]} {[%emt 00:02:36]} Kd5 {[%clk
00:21:28]} {[%emt 00:00:27]} 44. Ra5+ {[%clk 00:28:36]} {[%emt 00:00:38]} Kc6
{[%clk 00:21:20]} {[%emt 00:00:37]} 45. Rc5+ {[%clk 00:28:21]} {[%emt
00:00:46]} Kd7 {[%clk 00:21:37]} {[%emt 00:00:12]} 46. Ra5 {[%clk 00:28:09]}
{[%emt 00:00:41]} Kc6 {[%clk 00:22:03]} {[%emt 00:00:05]} 47. Ra3 {[%clk
00:24:06]} {[%emt 00:04:34]} Kd5 {[%clk 00:15:31]} {[%emt 00:07:01]} 48. Kg5
{[%clk 00:18:18]} {[%emt 00:06:18]} Rg8 {[%clk 00:15:11]} {[%emt 00:00:50]} 49.
Kf6 {[%clk 00:17:50]} {[%emt 00:00:58]} Rf8+ {[%clk 00:15:12]} {[%emt
00:00:29]} 50. Kg7 {[%clk 00:16:39]} {[%emt 00:01:41]} Ra8 {[%clk 00:15:35]}
{[%emt 00:00:07]} 51. Ra5+ {[%clk 00:16:20]} {[%emt 00:00:50]} Ke6 {[%clk
00:15:00]} {[%emt 00:01:04]} 52. Ra6 {[%clk 00:11:56]} {[%emt 00:04:55]} Kd5
{[%clk 00:08:56]} {[%emt 00:06:33]} 53. Ra5+ {[%clk 00:12:06]} {[%emt
00:00:20]} Ke6 {[%clk 00:09:21]} {[%emt 00:00:05]} 54. Kg6 {[%clk 00:10:36]}
{[%emt 00:01:59]} Rg8 {[%clk 00:09:15]} {[%emt 00:00:38]} 55. Kh5 {[%clk
00:08:24]} {[%emt 00:02:41]} Ra8 {[%clk 00:09:27]} {[%emt 00:00:18]} 56. Kg5
{[%clk 00:08:43]} {[%emt 00:00:11]} Kd7 {[%clk 00:03:16]} {[%emt 00:06:41]} 57.
Ra6 {[%clk 00:07:43]} {[%emt 00:01:31]} Ke6 {[%clk 00:03:09]} {[%emt 00:00:36]}
58. Ra5 {[%clk 00:08:06]} {[%emt 00:00:07]} Kd7 {[%clk 00:03:23]} {[%emt
00:00:15]} 59. Kf6 {[%clk 00:06:17]} {[%emt 00:02:20]} Rf8+ {[%clk 00:03:49]}
{[%emt 00:00:05]} 60. Kg7 {[%clk 00:06:27]} {[%emt 00:00:19]} Ra8 {[%clk
00:04:17]} {[%emt 00:00:02]} 61. Kg6 {[%clk 00:05:17]} {[%emt 00:01:40]} Rg8+
{[%clk 00:04:38]} {[%emt 00:00:10]} 62. Kh5 {[%clk 00:05:18]} {[%emt 00:00:28]}
Ra8 {[%clk 00:05:04]} {[%emt 00:00:05]} 63. Kh4 {[%clk 00:05:02]} {[%emt
00:00:46]} Ke6 {[%clk 00:04:12]} {[%emt 00:01:21]} 64. Kg3 {[%clk 00:05:23]}
{[%emt 00:00:09]} Kd7 {[%clk 00:03:52]} {[%emt 00:00:50]} 65. Kf2 {[%clk
00:05:48]} {[%emt 00:00:05]} Kc6 {[%clk 00:03:58]} {[%emt 00:00:23]} 66. Ra6+
{[%clk 00:05:21]} {[%emt 00:00:59]} Kd5 {[%clk 00:03:46]} {[%emt 00:00:41]} 67.
Kg3 {[%clk 00:04:20]} {[%emt 00:01:32]} Nc4 {[%clk 00:01:14]} {[%emt 00:03:00]}
68. Kf4 {[%clk 00:04:44]} {[%emt 00:00:08]} Nd6 {[%clk 00:01:34]} {[%emt
00:00:09]} 69. Ra5+ {[%clk 00:04:12]} {[%emt 00:01:03]} Kc6 {[%clk 00:01:41]}
{[%emt 00:00:20]} 70. d5+ {[%clk 00:04:21]} {[%emt 00:00:36]} Kb6 {[%clk
00:01:56]} {[%emt 00:00:14]} 71. Ra1 {[%clk 00:04:17]} {[%emt 00:00:35]} Kc5
{[%clk 00:02:07]} {[%emt 00:00:15]} 72. e4 {[%clk 00:03:44]} {[%emt 00:01:08]}
fxe4 {[%clk 00:02:27]} {[%emt 00:00:09]} 73. fxe4 {[%clk 00:04:10]} {[%emt
00:00:04]} Nc4 {[%clk 00:01:27]} {[%emt 00:01:29]} 74. Kf5 {[%clk 00:04:07]}
{[%emt 00:00:34]} Nd6 {[%clk 00:01:36]} {[%emt 00:00:21]} 75. Ke6 {[%clk
00:02:31]} {[%emt 00:02:06]} Nxe4 {[%clk 00:01:58]} {[%emt 00:00:08]} 76. Ke5
{[%clk 00:02:59]} {[%emt 00:00:03]} Nd6 {[%clk 00:01:49]} {[%emt 00:00:38]} 77.
Rc1+ {[%clk 00:02:47]} {[%emt 00:00:42]} Nc4 {[%clk 00:02:13]} {[%emt
00:00:06]} 78. Ke6 {[%clk 00:03:14]} {[%emt 00:00:03]} Rxa7 {[%clk 00:01:51]}
{[%emt 00:00:53]} 79. d6 {[%clk 00:03:40]} {[%emt 00:00:04]} Ra6 {[%clk
00:01:59]} {[%emt 00:00:21]} 80. Ke7 {[%clk 00:04:05]} {[%emt 00:00:05]} Rxd6
{[%clk 00:01:23]} {[%emt 00:01:06]} 81. Rxc4+ {[%clk 00:04:30]} {[%emt
00:00:05]} Kxc4 {[%clk 00:01:49]} {[%emt 00:00:04]} 82. Kxd6 {[%clk 00:04:57]}
{[%emt 00:00:04]} 1/2-1/2

[Event "Schack-SM 2022: Mastarklassen-Elit"]
[Site "Fyrishov, Idrottsgatan 2, Uppsala, Sweden"]
[Date "2022.07.08"]
[Round "7.5"]
[White "Ernst, Thomas"]
[Black "Furhoff, Johan"]
[Result "1-0"]
[TimeControl "90 minutes for 40 moves + 30 minutes for the rest of the game + 30 seconds per move from move one."]
[WhiteTitle "GM"]
[BlackTitle "IM"]
[WhiteFideId "1700065"]
[BlackFideId "1701797"]
[WhiteElo "2289"]
[BlackElo "2348"]

1. d4 {[%clk 01:30:51]} {[%emt 00:00:07]} d5 {[%clk 01:30:46]} {[%emt
00:00:15]} 2. c4 {[%clk 01:31:12]} {[%emt 00:00:10]} c6 {[%clk 01:31:05]}
{[%emt 00:00:10]} 3. Nf3 {[%clk 01:31:23]} {[%emt 00:00:18]} Nf6 {[%clk
01:31:23]} {[%emt 00:00:12]} 4. Nc3 {[%clk 01:31:36]} {[%emt 00:00:17]} a6
{[%clk 01:29:10]} {[%emt 00:02:44]} 5. c5 {[%clk 01:29:38]} {[%emt 00:02:28]}
Bg4 {[%clk 01:27:58]} {[%emt 00:01:41]} 6. Ne5 {[%clk 01:26:47]} {[%emt
00:03:22]} Bh5 {[%clk 04:45:45]} {[%emt 00:01:21]} 7. Qb3 {[%clk 01:21:21]}
{[%emt 00:05:56]} Ra7 {[%clk 01:20:48]} {[%emt 00:06:49]} 8. h3 {[%clk
01:16:59]} {[%emt 00:04:52]} Nbd7 {[%clk 01:15:20]} {[%emt 00:05:58]} 9. g4
{[%clk 01:15:57]} {[%emt 00:01:31]} Bg6 {[%clk 01:15:20]} {[%emt 00:00:31]} 10.
Nxg6 {[%clk 01:16:03]} {[%emt 00:00:25]} hxg6 {[%clk 01:15:39]} {[%emt
00:00:10]} 11. Bg2 {[%clk 01:16:19]} {[%emt 00:00:13]} e5 {[%clk 01:14:25]}
{[%emt 00:01:45]} 12. e3 {[%clk 01:15:48]} {[%emt 00:01:01]} g5 {[%clk
01:01:31]} {[%emt 00:13:24]} 13. Bd2 {[%clk 01:13:23]} {[%emt 00:02:54]} g6
{[%clk 00:58:26]} {[%emt 00:03:36]} 14. O-O-O {[%clk 01:07:16]} {[%emt
00:06:37]} Bg7 {[%clk 00:58:21]} {[%emt 00:00:34]} 15. Qc2 {[%clk 01:02:11]}
{[%emt 00:05:35]} O-O {[%clk 00:57:50]} {[%emt 00:01:02]} 16. dxe5 {[%clk
00:59:34]} {[%emt 00:03:07]} Nxe5 {[%clk 00:53:08]} {[%emt 00:05:11]} 17. e4
{[%clk 00:59:35]} {[%emt 00:00:29]} Nc4 {[%clk 00:44:35]} {[%emt 00:09:03]} 18.
exd5 {[%clk 00:48:27]} {[%emt 00:11:38]} Nxd5 {[%clk 00:43:42]} {[%emt
00:01:23]} 19. Bxd5 {[%clk 00:47:28]} {[%emt 00:01:30]} cxd5 {[%clk 00:43:24]}
{[%emt 00:00:49]} 20. Be3 {[%clk 00:47:37]} {[%emt 00:00:19]} d4 {[%clk
00:40:54]} {[%emt 00:03:00]} 21. Bxd4 {[%clk 00:43:31]} {[%emt 00:04:37]} Bxd4
{[%clk 00:39:41]} {[%emt 00:01:43]} 22. Qe4 {[%clk 00:43:13]} {[%emt 00:00:47]}
Re8 {[%clk 00:23:25]} {[%emt 00:16:46]} 23. Qxd4 {[%clk 00:41:27]} {[%emt
00:02:16]} Qxd4 {[%clk 00:23:38]} {[%emt 00:00:18]} 24. Rxd4 {[%clk 00:41:52]}
{[%emt 00:00:05]} b5 {[%clk 00:23:55]} {[%emt 00:00:13]} 25. cxb6 {[%clk
00:41:04]} {[%emt 00:01:19]} Nxb6 {[%clk 00:24:10]} {[%emt 00:00:14]} 26. Rhd1
{[%clk 00:39:56]} {[%emt 00:01:38]} Kg7 {[%clk 00:24:12]} {[%emt 00:00:28]} 27.
Rd8 {[%clk 00:39:34]} {[%emt 00:00:49]} Re5 {[%clk 00:23:14]} {[%emt 00:01:31]}
28. R1d6 {[%clk 00:36:44]} {[%emt 00:03:17]} Rb7 {[%clk 00:20:06]} {[%emt
00:03:41]} 29. b3 {[%clk 00:35:28]} {[%emt 00:01:46]} Rc5 {[%clk 00:16:00]}
{[%emt 00:04:36]} 30. Kd2 {[%clk 00:34:43]} {[%emt 00:01:12]} Ra5 {[%clk
00:15:12]} {[%emt 00:01:20]} 31. Kd3 {[%clk 00:32:34]} {[%emt 00:02:36]} f5
{[%clk 00:13:35]} {[%emt 00:02:10]} 32. Kd4 {[%clk 00:30:04]} {[%emt 00:02:58]}
Kf7 {[%clk 00:12:57]} {[%emt 00:01:10]} 33. gxf5 {[%clk 00:23:49]} gxf5 {[%clk
00:12:43]} {[%emt 00:07:29]} 34. Rh8 {[%clk 00:24:00]} Kg7 {[%clk 00:12:07]}
{[%emt 00:01:25]} 35. Rhh6 {[%clk 00:23:44]} Rd7 {[%clk 00:10:52]} {[%emt
00:02:33]} 36. Rhg6+ {[%clk 00:23:41]} Kf7 {[%clk 00:11:13]} {[%emt 00:00:40]}
37. Rxd7+ {[%clk 00:24:02]} Nxd7 {[%clk 00:11:38]} {[%emt 00:00:15]} 38. Rxg5
{[%clk 00:23:54]} Nf8 {[%clk 00:11:30]} {[%emt 00:01:16]} 39. Rg3 {[%clk
00:19:21]} Ne6+ {[%clk 00:11:18]} {[%emt 00:05:45]} 40. Kc4 {[%clk 00:19:20]}
Rc5+ {[%clk 00:10:38]} {[%emt 00:01:40]} 41. Kb4 {[%clk 00:18:05]} Kf6 {[%clk
00:07:44]} {[%emt 00:05:10]} 42. Re3 {[%clk 00:16:48]} a5+ {[%clk 00:07:20]}
{[%emt 00:02:41]} 43. Ka4 {[%clk 00:17:03]} {[%emt 00:00:14]} f4 {[%clk
00:06:29]} {[%emt 00:01:22]} 44. Ne4+ {[%clk 00:14:06]} {[%emt 00:03:27]} 1-0

[Event "Schack-SM 2022: Mastarklassen-Elit"]
[Site "Fyrishov, Idrottsgatan 2, Uppsala, Sweden"]
[Date "2022.07.07"]
[Round "6.4"]
[White "Cederstam, Carl"]
[Black "Ernst, Thomas"]
[Result "0-1"]
[TimeControl "90 minutes for 40 moves + 30 minutes for the rest of the game + 30 seconds per move from move one."]
[WhiteTitle "FM"]
[BlackTitle "GM"]
[WhiteFideId "1713329"]
[BlackFideId "1700065"]
[WhiteElo "2332"]
[BlackElo "2289"]

1. d4 {[%clk 01:30:15]} {[%emt 00:00:43]} Nf6 {[%clk 01:30:35]} {[%emt
00:00:25]} 2. c4 {[%clk 01:30:20]} {[%emt 00:00:25]} g6 {[%clk 01:30:51]}
{[%emt 00:00:14]} 3. Nc3 {[%clk 01:30:44]} {[%emt 00:00:07]} d5 {[%clk
01:31:11]} {[%emt 00:00:10]} 4. h4 {[%clk 01:29:13]} {[%emt 00:02:01]} c5
{[%clk 01:26:23]} {[%emt 00:05:18]} 5. cxd5 {[%clk 01:19:53]} {[%emt 00:09:49]}
Nxd5 {[%clk 01:25:54]} {[%emt 00:00:59]} 6. h5 {[%clk 01:13:42]} {[%emt
00:06:41]} Bg7 {[%clk 01:23:44]} {[%emt 00:02:41]} 7. hxg6 {[%clk 00:49:36]}
{[%emt 00:24:37]} hxg6 {[%clk 01:23:59]} {[%emt 00:00:14]} 8. Rxh8+ {[%clk
00:50:01]} {[%emt 00:00:05]} Bxh8 {[%clk 01:24:23]} {[%emt 00:00:06]} 9. Nxd5
{[%clk 00:38:14]} {[%emt 00:12:16]} Qxd5 {[%clk 01:24:34]} {[%emt 00:00:19]} 10.
dxc5 {[%clk 00:38:20]} {[%emt 00:00:26]} Qxc5 {[%clk 01:14:16]} {[%emt
00:10:47]} 11. Bd2 {[%clk 00:37:53]} {[%emt 00:00:56]} Nc6 {[%clk 01:14:32]}
{[%emt 00:00:15]} 12. Rc1 {[%clk 00:31:13]} {[%emt 00:07:09]} Qd5 {[%clk
01:14:36]} {[%emt 00:00:25]} 13. Bc3 {[%clk 00:29:59]} {[%emt 00:01:46]} Bxc3+
{[%clk 01:13:21]} {[%emt 00:01:44]} 14. Rxc3 {[%clk 00:28:33]} {[%emt
00:01:57]} Qxa2 {[%clk 01:06:31]} {[%emt 00:07:20]} 15. Qc1 {[%clk 00:29:00]}
{[%emt 00:00:03]} Bd7 {[%clk 01:06:17]} {[%emt 00:00:43]} 16. Nf3 {[%clk
00:25:39]} {[%emt 00:03:51]} Qa5 {[%clk 00:56:44]} {[%emt 00:10:03]} 17. e4
{[%clk 00:20:06]} {[%emt 00:06:03]} Ne5 {[%clk 00:48:39]} {[%emt 00:08:35]} 18.
Nxe5 {[%clk 00:20:05]} {[%emt 00:00:32]} Qxe5 {[%clk 00:49:00]} {[%emt
00:00:08]} 19. Bd3 {[%clk 00:20:27]} {[%emt 00:00:08]} Qh2 {[%clk 00:31:07]}
{[%emt 00:18:22]} 20. Qg5 {[%clk 00:18:49]} {[%emt 00:02:07]} Bc6 {[%clk
00:29:56]} {[%emt 00:01:42]} 21. Bb5 {[%clk 00:04:49]} {[%emt 00:14:32]} Qd6
{[%clk 00:29:17]} {[%emt 00:01:07]} 22. Bxc6+ {[%clk 00:01:29]} {[%emt
00:03:53]} bxc6 {[%clk 00:29:41]} {[%emt 00:00:05]} 23. g3 {[%clk 00:00:53]}
{[%emt 00:01:05]} Rb8 {[%clk 00:28:41]} {[%emt 00:01:30]} 24. Kf1 {[%clk
00:00:50]} {[%emt 00:00:33]} Rxb2 {[%clk 00:28:10]} {[%emt 00:01:00]} 25. Qg4
{[%clk 00:00:42]} {[%emt 00:00:40]} Kf8 {[%clk 00:20:02]} {[%emt 00:08:37]} 26.
Kg2 {[%clk 00:00:40]} {[%emt 00:00:31]} Rxf2+ {[%clk 00:18:56]} {[%emt
00:01:38]} 0-1

[Event "Schack-SM 2022: Mastarklassen-Elit"]
[Site "Fyrishov, Idrottsgatan 2, Uppsala, Sweden"]
[Date "2022.07.07"]
[Round "6.5"]
[White "Trost, Edvin"]
[Black "Engqvist, Thomas"]
[Result "1-0"]
[TimeControl "90 minutes for 40 moves + 30 minutes for the rest of the game + 30 seconds per move from move one."]
[WhiteTitle "FM"]
[BlackTitle "IM"]
[WhiteFideId "1729519"]
[BlackFideId "1700332"]
[WhiteElo "2345"]
[BlackElo "2330"]

1. d4 {[%clk 01:30:40]} {[%emt 00:00:19]} Nf6 {[%clk 01:30:45]} {[%emt
00:00:15]} 2. Nc3 {[%clk 01:30:50]} {[%emt 00:00:21]} d5 {[%clk 01:31:02]}
{[%emt 00:00:12]} 3. Bf4 {[%clk 01:31:14]} {[%emt 00:00:07]} c6 {[%clk
01:28:48]} {[%emt 00:02:44]} 4. e3 {[%clk 01:30:30]} {[%emt 00:01:13]} Qb6
{[%clk 01:28:39]} {[%emt 00:00:39]} 5. Rb1 {[%clk 01:26:51]} {[%emt 00:04:10]}
e6 {[%clk 01:25:22]} {[%emt 00:03:47]} 6. Nf3 {[%clk 01:24:26]} {[%emt
00:02:55]} c5 {[%clk 01:16:20]} {[%emt 00:09:32]} 7. Be2 {[%clk 01:12:41]}
{[%emt 00:12:14]} c4 {[%clk 01:12:59]} {[%emt 00:03:52]} 8. O-O {[%clk
01:07:55]} {[%emt 00:05:17]} Qa5 {[%clk 01:12:21]} {[%emt 00:01:07]} 9. e4
{[%clk 01:05:26]} {[%emt 00:02:59]} Bb4 {[%clk 01:12:00]} {[%emt 00:00:51]} 10.
Bd2 {[%clk 00:58:52]} {[%emt 00:07:04]} Nc6 {[%clk 01:01:28]} {[%emt 00:11:01]}
11. a3 {[%clk 00:46:44]} {[%emt 00:12:39]} Bxc3 {[%clk 01:01:50]} {[%emt
00:00:07]} 12. Bxc3 {[%clk 00:47:10]} {[%emt 00:00:04]} Qd8 {[%clk 00:59:02]}
{[%emt 00:03:18]} 13. e5 {[%clk 00:46:28]} {[%emt 00:01:12]} Ne4 {[%clk
00:59:11]} 14. Be1 {[%clk 00:46:37]} {[%emt 00:00:41]} b5 {[%clk 00:56:59]} 15.
g3 {[%clk 00:36:34]} {[%emt 00:17:32]} f6 {[%clk 00:49:16]} 16. exf6 {[%clk
00:34:49]} {[%emt 00:06:13]} Qxf6 {[%clk 00:47:11]} 17. c3 {[%clk 00:34:32]}
{[%emt 00:03:22]} O-O {[%clk 00:46:41]} 18. Bd2 {[%clk 00:29:22]} {[%emt
00:06:40]} e5 {[%clk 00:44:05]} 19. Be3 {[%clk 00:27:17]} {[%emt 00:09:07]} Be6
{[%clk 00:29:16]} 20. Nxe5 {[%clk 00:24:29]} {[%emt 00:15:11]} Nxe5 {[%clk
00:29:39]} 21. dxe5 {[%clk 00:24:54]} {[%emt 00:00:12]} Qxe5 {[%clk 00:30:02]}
22. Re1 {[%clk 00:23:38]} {[%emt 00:01:53]} Rf7 {[%clk 00:21:49]} 23. Qd4
{[%clk 00:22:29]} {[%emt 00:10:22]} Qc7 {[%clk 00:17:56]} 24. Bf4 {[%clk
00:16:24]} {[%emt 00:10:57]} Rxf4 {[%clk 00:13:26]} 25. gxf4 {[%clk 00:16:47]}
{[%emt 00:05:08]} Qxf4 {[%clk 00:13:44]} 26. f3 {[%clk 00:15:58]} {[%emt
00:01:30]} Ng5 {[%clk 00:12:04]} 27. Qxf4 {[%clk 00:14:52]} {[%emt 00:03:46]}
Nh3+ {[%clk 00:12:29]} 28. Kg2 {[%clk 00:14:35]} {[%emt 00:00:52]} Nxf4+ {[%clk
00:12:53]} 29. Kg3 {[%clk 00:12:46]} {[%emt 00:02:25]} g5 {[%clk 00:12:19]} 30.
h4 {[%clk 00:11:03]} {[%emt 00:03:17]} h6 {[%clk 00:12:44]} 31. Bf1 {[%clk
00:09:31]} {[%emt 00:02:08]} Kf7 {[%clk 00:12:52]} 32. hxg5 {[%clk 00:09:00]}
{[%emt 00:01:22]} hxg5 {[%clk 00:13:18]} 33. b3 {[%clk 00:08:40]} {[%emt
00:00:55]} Bf5 {[%clk 00:09:08]} 34. Rb2 {[%clk 00:09:06]} {[%emt 00:04:44]} a6
{[%clk 00:06:26]} 35. bxc4 {[%clk 00:07:24]} {[%emt 00:05:25]} dxc4 {[%emt
00:00:16]} 36. a4 {[%clk 00:07:42]} Bd7 {[%clk 00:04:07]} {[%emt 00:03:14]} 37.
Rd2 {[%clk 00:07:06]} {[%emt 00:01:06]} Ra7 {[%clk 00:04:19]} {[%emt 00:00:18]}
38. Rd6 {[%clk 00:05:13]} {[%emt 00:02:23]} Be6 {[%clk 00:03:15]} {[%emt
00:01:33]} 39. Rb6 {[%clk 00:02:48]} {[%emt 00:02:55]} Bd7 {[%clk 00:00:39]}
{[%emt 00:03:07]} 40. Re5 {[%clk 00:03:02]} {[%emt 00:00:16]} Nd3 {[%clk
00:00:44]} {[%emt 00:00:25]} 41. Bxd3 {[%clk 00:26:08]} {[%emt 00:07:24]} cxd3
{[%clk 00:31:07]} {[%emt 00:00:06]} 42. a5 {[%clk 00:26:33]} {[%emt 00:00:05]}
Bc8 {[%clk 00:25:07]} {[%emt 00:06:31]} 43. Rd6 {[%clk 00:25:13]} {[%emt
00:01:49]} Rc7 {[%clk 00:23:00]} {[%emt 00:02:38]} 44. Rxd3 {[%clk 00:25:37]}
{[%emt 00:00:06]} Rc4 {[%clk 00:21:09]} {[%emt 00:02:21]} 45. Rxg5 {[%clk
00:25:54]} {[%emt 00:00:13]} Ra4 {[%clk 00:21:16]} {[%emt 00:00:23]} 46. Rc5
{[%clk 00:26:05]} {[%emt 00:00:19]} Be6 {[%clk 00:20:43]} {[%emt 00:01:03]} 47.
Rc7+ {[%clk 00:26:24]} {[%emt 00:00:10]} Kf6 {[%clk 00:20:10]} {[%emt
00:01:03]} 48. Rd6 {[%clk 00:26:45]} {[%emt 00:00:09]} Kf5 {[%clk 00:19:45]}
{[%emt 00:00:55]} 49. Rc5+ {[%clk 00:27:04]} {[%emt 00:00:11]} 1-0